Workbook

Sheet Sheet1
A1: 固定资产报废汇总表
A2: 序号 | B2: 资产编号 | C2: 资产名称 | D2: 单价 | E2: 套（件数） | F2: 原值（元） | G2: 购置日期
A3: 1 | B3: 20182467 | C3: 办公桌 | D3: 47.56 | E3: 1 | F3: =SUM(D3*E3) -> 47.56 | G3: 2008-09-01
A4: 2 | B4: 20182468 | C4: 办公桌 | D4: 47.56 | E4: 1 | F4: =SUM(D4*E4) -> 47.56 | G4: 2008-09-01
A5: 3 | B5: 20182469 | C5: 办公桌 | D5: 47.56 | E5: 1 | F5: =SUM(D5*E5) -> 47.56 | G5: 2008-09-01
A6: 4 | B6: 20182470 | C6: 办公桌 | D6: 47.56 | E6: 1 | F6: =SUM(D6*E6) -> 47.56 | G6: 2008-09-01
A7: 5 | B7: 20182471 | C7: 过塑机 | D7: 200 | E7: 1 | F7: =SUM(D7*E7) -> 200 | G7: 2007-12-01
A8: 6 | B8: 20182482 | C8: 金属报架 | D8: 105 | E8: 1 | F8: =SUM(D8*E8) -> 105 | G8: 2008-09-01
A9: 7 | B9: 20182483 | C9: 金属报架 | D9: 105 | E9: 1 | F9: =SUM(D9*E9) -> 105 | G9: 2008-09-01
A10: 8 | B10: 20182484 | C10: 金属报架 | D10: 105 | E10: 1 | F10: =SUM(D10*E10) -> 105 | G10: 2008-09-01
A11: 9 | B11: 20182485 | C11: 金属报架 | D11: 105 | E11: 1 | F11: =SUM(D11*E11) -> 105 | G11: 2008-09-01
A12: 10 | B12: 20182486 | C12: 金属报架 | D12: 105 | E12: 1 | F12: =SUM(D12*E12) -> 105 | G12: 2008-09-01
A13: 11 | B13: 20182487 | C13: 落地式工业电风扇 | D13: 240 | E13: 1 | F13: =SUM(D13*E13) -> 240 | G13: 2008-10-01
A14: 12 | B14: 20182488 | C14: 台式切卡机 | D14: 200 | E14: 1 | F14: =SUM(D14*E14) -> 200 | G14: 2008-06-01
A15: 13 | B15: 20182489 | C15: 五层报架 | D15: 120 | E15: 1 | F15: =SUM(D15*E15) -> 120 | G15: 2008-09-01
A16: 14 | B16: 20182490 | C16: 阅览桌（带书橱） | D16: 340 | E16: 1 | F16: =SUM(D16*E16) -> 340 | G16: 2006-07-01
A17: 15 | B17: 20182550 | C17: 代表单元 | D17: 500 | E17: 1 | F17: =SUM(D17*E17) -> 500 | G17: 2011-01-13
A18: 16 | B18: 20182551 | C18: 代表单元 | D18: 500 | E18: 1 | F18: =SUM(D18*E18) -> 500 | G18: 2011-01-13
A19: 17 | B19: 20182552 | C19: 代表单元 | D19: 500 | E19: 1 | F19: =SUM(D19*E19) -> 500 | G19: 2011-01-13
A20: 18 | B20: 20182553 | C20: 代表单元 | D20: 500 | E20: 1 | F20: =SUM(D20*E20) -> 500 | G20: 2011-01-13
A21: 19 | B21: 20182554 | C21: 代表单元 | D21: 500 | E21: 1 | F21: =SUM(D21*E21) -> 500 | G21: 2011-01-13
A22: 20 | B22: 20182555 | C22: 代表单元 | D22: 500 | E22: 1 | F22: =SUM(D22*E22) -> 500 | G22: 2011-01-13
A23: 21 | B23: 20182556 | C23: 代表单元 | D23: 500 | E23: 1 | F23: =SUM(D23*E23) -> 500 | G23: 2011-01-13
A24: 22 | B24: 20182557 | C24: 代表单元 | D24: 500 | E24: 1 | F24: =SUM(D24*E24) -> 500 | G24: 2011-01-13
A25: 23 | B25: 20182558 | C25: 代表单元 | D25: 500 | E25: 1 | F25: =SUM(D25*E25) -> 500 | G25: 2011-01-13
A26: 24 | B26: 20182559 | C26: 代表单元 | D26: 500 | E26: 1 | F26: =SUM(D26*E26) -> 500 | G26: 2011-01-13
A27: 25 | B27: 20182560 | C27: 代表单元 | D27: 500 | E27: 1 | F27: =SUM(D27*E27) -> 500 | G27: 2011-01-13
A28: 26 | B28: 20182561 | C28: 代表单元 | D28: 500 | E28: 1 | F28: =SUM(D28*E28) -> 500 | G28: 2011-01-13
A29: 27 | B29: 20182562 | C29: 代表单元 | D29: 500 | E29: 1 | F29: =SUM(D29*E29) -> 500 | G29: 2011-01-13
A30: 28 | B30: 20182563 | C30: 代表单元 | D30: 500 | E30: 1 | F30: =SUM(D30*E30) -> 500 | G30: 2011-01-13
A31: 29 | B31: 20182564 | C31: 代表单元 | D31: 500 | E31: 1 | F31: =SUM(D31*E31) -> 500 | G31: 2011-01-13
A32: 30 | B32: 20182565 | C32: 代表单元 | D32: 500 | E32: 1 | F32: =SUM(D32*E32) -> 500 | G32: 2011-01-13
A33: 31 | B33: 20182566 | C33: 代表单元 | D33: 500 | E33: 1 | F33: =SUM(D33*E33) -> 500 | G33: 2011-01-13
A34: 32 | B34: 20182567 | C34: 代表单元 | D34: 500 | E34: 1 | F34: =SUM(D34*E34) -> 500 | G34: 2011-01-13
A35: 33 | B35: 20182568 | C35: 代表单元 | D35: 500 | E35: 1 | F35: =SUM(D35*E35) -> 500 | G35: 2011-01-13
A36: 34 | B36: 20182569 | C36: 代表单元 | D36: 500 | E36: 1 | F36: =SUM(D36*E36) -> 500 | G36: 2011-01-13
A37: 35 | B37: 20182603 | C37: 扩音型代表单元 | D37: 825 | E37: 1 | F37: =SUM(D37*E37) -> 825 | G37: 2011-01-13
A38: 36 | B38: 20182604 | C38: 扩音型代表单元 | D38: 825 | E38: 1 | F38: =SUM(D38*E38) -> 825 | G38: 2011-01-13
A39: 37 | B39: 20182605 | C39: 扩音型代表单元 | D39: 825 | E39: 1 | F39: =SUM(D39*E39) -> 825 | G39: 2011-01-13
A40: 38 | B40: 20182606 | C40: 扩音型代表单元 | D40: 825 | E40: 1 | F40: =SUM(D40*E40) -> 825 | G40: 2011-01-13
A41: 39 | B41: 20182607 | C41: 扩音型代表单元 | D41: 825 | E41: 1 | F41: =SUM(D41*E41) -> 825 | G41: 2011-01-13
A42: 40 | B42: 20182608 | C42: 扩音型代表单元 | D42: 825 | E42: 1 | F42: =SUM(D42*E42) -> 825 | G42: 2011-01-13
A43: 41 | B43: 20182609 | C43: 扩音型代表单元 | D43: 825 | E43: 1 | F43: =SUM(D43*E43) -> 825 | G43: 2011-01-13
A44: 42 | B44: 20182610 | C44: 扩音型代表单元 | D44: 825 | E44: 1 | F44: =SUM(D44*E44) -> 825 | G44: 2011-01-13
A45: 43 | B45: 20182611 | C45: 扩音型代表单元 | D45: 825 | E45: 1 | F45: =SUM(D45*E45) -> 825 | G45: 2011-01-13
A46: 44 | B46: 20182612 | C46: 扩音型代表单元 | D46: 825 | E46: 1 | F46: =SUM(D46*E46) -> 825 | G46: 2011-01-13
A47: 45 | B47: 20182613 | C47: 扩音型代表单元 | D47: 825 | E47: 1 | F47: =SUM(D47*E47) -> 825 | G47: 2011-01-13
A48: 46 | B48: 20182614 | C48: 扩音型代表单元 | D48: 825 | E48: 1 | F48: =SUM(D48*E48) -> 825 | G48: 2011-01-13
A49: 47 | B49: 20182615 | C49: 扩音型代表单元 | D49: 825 | E49: 1 | F49: =SUM(D49*E49) -> 825 | G49: 2011-01-13
A50: 48 | B50: 20182616 | C50: 扩音型代表单元 | D50: 825 | E50: 1 | F50: =SUM(D50*E50) -> 825 | G50: 2011-01-13
A51: 49 | B51: 20182617 | C51: 扩音型代表单元 | D51: 825 | E51: 1 | F51: =SUM(D51*E51) -> 825 | G51: 2011-01-13
A52: 50 | B52: 20182618 | C52: 扩音型代表单元 | D52: 825 | E52: 1 | F52: =SUM(D52*E52) -> 825 | G52: 2011-01-13
A53: 51 | B53: 20182619 | C53: 扩音型代表单元 | D53: 825 | E53: 1 | F53: =SUM(D53*E53) -> 825 | G53: 2011-01-13
A54: 52 | B54: 20182621 | C54: 扩音型主席单元 | D54: 894 | E54: 1 | F54: =SUM(D54*E54) -> 894 | G54: 2011-01-13
A55: 53 | B55: 20182624 | C55: 两信道无线麦克风 | D55: 1105 | E55: 1 | F55: =SUM(D55*E55) -> 1105 | G55: 2011-01-13
A56: 54 | B56: 20182627 | C56: 幕布 | D56: 650 | E56: 1 | F56: =SUM(D56*E56) -> 650 | G56: 2011-01-13
A57: 55 | B57: 20182628 | C57: 幕布 | D57: 650 | E57: 1 | F57: =SUM(D57*E57) -> 650 | G57: 2011-01-13
A58: 56 | B58: 20182640 | C58: 主席单元 | D58: 562.5 | E58: 1 | F58: =SUM(D58*E58) -> 562.5 | G58: 2011-01-13
A59: 57 | B59: 20182641 | C59: 主席单元 | D59: 562.5 | E59: 1 | F59: =SUM(D59*E59) -> 562.5 | G59: 2011-01-13
A60: 58 | B60: 20182657 | C60: 自动反馈抑制器 | D60: 1482 | E60: 1 | F60: =SUM(D60*E60) -> 1482 | G60: 2011-01-13
A61: 59 | B61: 20182670 | C61: 电脑显示器 | D61: 1000 | E61: 1 | F61: =SUM(D61*E61) -> 1000 | G61: 2010-10-27
A62: 60 | B62: 20182882 | C62: 电脑显示器 | D62: 1000 | E62: 1 | F62: =SUM(D62*E62) -> 1000 | G62: 2010-10-27
A63: 61 | B63: 20182883 | C63: 电脑显示器 | D63: 1000 | E63: 1 | F63: =SUM(D63*E63) -> 1000 | G63: 2010-10-27
A64: 62 | B64: 20182884 | C64: 电脑显示器 | D64: 1000 | E64: 1 | F64: =SUM(D64*E64) -> 1000 | G64: 2010-10-27
A65: 63 | B65: 20182885 | C65: 电脑显示器 | D65: 1000 | E65: 1 | F65: =SUM(D65*E65) -> 1000 | G65: 2010-10-27
A66: 64 | B66: 20182886 | C66: 电脑显示器 | D66: 1000 | E66: 1 | F66: =SUM(D66*E66) -> 1000 | G66: 2010-10-27
A67: 65 | B67: 20182887 | C67: 电脑显示器 | D67: 1000 | E67: 1 | F67: =SUM(D67*E67) -> 1000 | G67: 2010-10-27
A68: 66 | B68: 20182888 | C68: 电脑显示器 | D68: 1000 | E68: 1 | F68: =SUM(D68*E68) -> 1000 | G68: 2010-10-27
A69: 67 | B69: 20182889 | C69: 电脑显示器 | D69: 1000 | E69: 1 | F69: =SUM(D69*E69) -> 1000 | G69: 2010-10-27
A70: 68 | B70: 20182890 | C70: 电脑显示器 | D70: 1000 | E70: 1 | F70: =SUM(D70*E70) -> 1000 | G70: 2010-10-27
A71: 69 | B71: 20182891 | C71: 电脑显示器 | D71: 1000 | E71: 1 | F71: =SUM(D71*E71) -> 1000 | G71: 2010-10-27
A72: 70 | B72: 20182892 | C72: 电脑显示器 | D72: 1000 | E72: 1 | F72: =SUM(D72*E72) -> 1000 | G72: 2010-10-27
A73: 71 | B73: 20182893 | C73: 电脑显示器 | D73: 1000 | E73: 1 | F73: =SUM(D73*E73) -> 1000 | G73: 2010-10-27
A74: 72 | B74: 20182894 | C74: 电脑显示器 | D74: 1000 | E74: 1 | F74: =SUM(D74*E74) -> 1000 | G74: 2010-10-27
A75: 73 | B75: 20182895 | C75: 电脑显示器 | D75: 1000 | E75: 1 | F75: =SUM(D75*E75) -> 1000 | G75: 2010-10-27
A76: 74 | B76: 20182896 | C76: 电脑显示器 | D76: 1000 | E76: 1 | F76: =SUM(D76*E76) -> 1000 | G76: 2010-10-27
A77: 75 | B77: 20182897 | C77: 电脑显示器 | D77: 1000 | E77: 1 | F77: =SUM(D77*E77) -> 1000 | G77: 2010-10-27
A78: 76 | B78: 20182898 | C78: 电脑显示器 | D78: 1000 | E78: 1 | F78: =SUM(D78*E78) -> 1000 | G78: 2010-10-27
A79: 77 | B79: 20182899 | C79: 电脑显示器 | D79: 1000 | E79: 1 | F79: =SUM(D79*E79) -> 1000 | G79: 2010-10-27
A80: 78 | B80: 20182900 | C80: 电脑显示器 | D80: 1000 | E80: 1 | F80: =SUM(D80*E80) -> 1000 | G80: 2010-10-27
A81: 79 | B81: 20182901 | C81: 电脑显示器 | D81: 1000 | E81: 1 | F81: =SUM(D81*E81) -> 1000 | G81: 2010-10-27
A82: 80 | B82: 20182902 | C82: 电脑显示器 | D82: 1000 | E82: 1 | F82: =SUM(D82*E82) -> 1000 | G82: 2010-10-27
A83: 81 | B83: 20182903 | C83: 电脑显示器 | D83: 1000 | E83: 1 | F83: =SUM(D83*E83) -> 1000 | G83: 2010-10-27
A84: 82 | B84: 20182904 | C84: 电脑显示器 | D84: 1000 | E84: 1 | F84: =SUM(D84*E84) -> 1000 | G84: 2010-10-27
A85: 83 | B85: 20182905 | C85: 电脑显示器 | D85: 1000 | E85: 1 | F85: =SUM(D85*E85) -> 1000 | G85: 2010-10-27
A86: 84 | B86: 20182906 | C86: 电脑显示器 | D86: 1000 | E86: 1 | F86: =SUM(D86*E86) -> 1000 | G86: 2010-10-27
A87: 85 | B87: 20182908 | C87: 电脑显示器 | D87: 1000 | E87: 1 | F87: =SUM(D87*E87) -> 1000 | G87: 2010-10-27
A88: 86 | B88: 20182910 | C88: 电脑显示器 | D88: 1000 | E88: 1 | F88: =SUM(D88*E88) -> 1000 | G88: 2010-10-27
A89: 87 | B89: 20182911 | C89: 电脑显示器 | D89: 1000 | E89: 1 | F89: =SUM(D89*E89) -> 1000 | G89: 2010-10-27
A90: 88 | B90: 20182912 | C90: 电脑显示器 | D90: 1000 | E90: 1 | F90: =SUM(D90*E90) -> 1000 | G90: 2010-10-27
A91: 89 | B91: 20182913 | C91: 电脑显示器 | D91: 1000 | E91: 1 | F91: =SUM(D91*E91) -> 1000 | G91: 2010-10-27
A92: 90 | B92: 20182915 | C92: 电脑显示器 | D92: 1000 | E92: 1 | F92: =SUM(D92*E92) -> 1000 | G92: 2010-10-27
A93: 91 | B93: 20182916 | C93: 电脑显示器 | D93: 1000 | E93: 1 | F93: =SUM(D93*E93) -> 1000 | G93: 2010-10-27
A94: 92 | B94: 20182918 | C94: 电脑显示器 | D94: 1000 | E94: 1 | F94: =SUM(D94*E94) -> 1000 | G94: 2010-10-27
A95: 93 | B95: 20182919 | C95: 电脑显示器 | D95: 1000 | E95: 1 | F95: =SUM(D95*E95) -> 1000 | G95: 2010-10-27
A96: 94 | B96: 20182921 | C96: 电脑显示器 | D96: 1000 | E96: 1 | F96: =SUM(D96*E96) -> 1000 | G96: 2010-10-27
A97: 95 | B97: 20182923 | C97: 电脑显示器 | D97: 1000 | E97: 1 | F97: =SUM(D97*E97) -> 1000 | G97: 2010-10-27
A98: 96 | B98: 20182925 | C98: 电脑显示器 | D98: 1000 | E98: 1 | F98: =SUM(D98*E98) -> 1000 | G98: 2010-10-27
A99: 97 | B99: 20183158 | C99: 电脑显示器 | D99: 2080 | E99: 1 | F99: =SUM(D99*E99) -> 2080 | G99: 2012-03-19
A100: 98 | B100: 20182599 | C100: 电脑显示器 | D100: 1000 | E100: 1 | F100: =SUM(D100*E100) -> 1000 | G100: 2010-11-22
A101: 99 | B101: 20182602 | C101: 电脑显示器 | D101: 1000 | E101: 1 | F101: =SUM(D101*E101) -> 1000 | G101: 2011-01-13
A102: 100 | B102: 20182522 | C102: 电脑主机 | D102: 1950 | E102: 1 | F102: =SUM(D102*E102) -> 1950 | G102: 2010-10-27
A103: 101 | B103: 20182984 | C103: 电脑主机 | D103: 1950 | E103: 1 | F103: =SUM(D103*E103) -> 1950 | G103: 2010-10-27
A104: 102 | B104: 20182985 | C104: 电脑主机 | D104: 1950 | E104: 1 | F104: =SUM(D104*E104) -> 1950 | G104: 2010-10-27
A105: 103 | B105: 20182986 | C105: 电脑主机 | D105: 1950 | E105: 1 | F105: =SUM(D105*E105) -> 1950 | G105: 2010-10-27
A106: 104 | B106: 20182987 | C106: 电脑主机 | D106: 1950 | E106: 1 | F106: =SUM(D106*E106) -> 1950 | G106: 2010-10-27
A107: 105 | B107: 20182988 | C107: 电脑主机 | D107: 1950 | E107: 1 | F107: =SUM(D107*E107) -> 1950 | G107: 2010-10-27
A108: 106 | B108: 20182989 | C108: 电脑主机 | D108: 1950 | E108: 1 | F108: =SUM(D108*E108) -> 1950 | G108: 2010-10-27
A109: 107 | B109: 20182990 | C109: 电脑主机 | D109: 1950 | E109: 1 | F109: =SUM(D109*E109) -> 1950 | G109: 2010-10-27
A110: 108 | B110: 20182991 | C110: 电脑主机 | D110: 1950 | E110: 1 | F110: =SUM(D110*E110) -> 1950 | G110: 2010-10-27
A111: 109 | B111: 20182992 | C111: 电脑主机 | D111: 1950 | E111: 1 | F111: =SUM(D111*E111) -> 1950 | G111: 2010-10-27
A112: 110 | B112: 20182993 | C112: 电脑主机 | D112: 1950 | E112: 1 | F112: =SUM(D112*E112) -> 1950 | G112: 2010-10-27
A113: 111 | B113: 20182994 | C113: 电脑主机 | D113: 1950 | E113: 1 | F113: =SUM(D113*E113) -> 1950 | G113: 2010-10-27
A114: 112 | B114: 20182995 | C114: 电脑主机 | D114: 1950 | E114: 1 | F114: =SUM(D114*E114) -> 1950 | G114: 2010-10-27
A115: 113 | B115: 20182996 | C115: 电脑主机 | D115: 1950 | E115: 1 | F115: =SUM(D115*E115) -> 1950 | G115: 2010-10-27
A116: 114 | B116: 20182997 | C116: 电脑主机 | D116: 1950 | E116: 1 | F116: =SUM(D116*E116) -> 1950 | G116: 2010-10-27
A117: 115 | B117: 20182998 | C117: 电脑主机 | D117: 1950 | E117: 1 | F117: =SUM(D117*E117) -> 1950 | G117: 2010-10-27
A118: 116 | B118: 20182999 | C118: 电脑主机 | D118: 1950 | E118: 1 | F118: =SUM(D118*E118) -> 1950 | G118: 2010-10-27
A119: 117 | B119: 20183000 | C119: 电脑主机 | D119: 1950 | E119: 1 | F119: =SUM(D119*E119) -> 1950 | G119: 2010-10-27
A120: 118 | B120: 20183001 | C120: 电脑主机 | D120: 1950 | E120: 1 | F120: =SUM(D120*E120) -> 1950 | G120: 2010-10-27
A121: 119 | B121: 20183002 | C121: 电脑主机 | D121: 1950 | E121: 1 | F121: =SUM(D121*E121) -> 1950 | G121: 2010-10-27
A122: 120 | B122: 20183003 | C122: 电脑主机 | D122: 1950 | E122: 1 | F122: =SUM(D122*E122) -> 1950 | G122: 2010-10-27
A123: 121 | B123: 20183004 | C123: 电脑主机 | D123: 1950 | E123: 1 | F123: =SUM(D123*E123) -> 1950 | G123: 2010-10-27
A124: 122 | B124: 20183005 | C124: 电脑主机 | D124: 1950 | E124: 1 | F124: =SUM(D124*E124) -> 1950 | G124: 2010-10-27
A125: 123 | B125: 20183006 | C125: 电脑主机 | D125: 1950 | E125: 1 | F125: =SUM(D125*E125) -> 1950 | G125: 2010-10-27
A126: 124 | B126: 20183007 | C126: 电脑主机 | D126: 1950 | E126: 1 | F126: =SUM(D126*E126) -> 1950 | G126: 2010-10-27
A127: 125 | B127: 20183008 | C127: 电脑主机 | D127: 1950 | E127: 1 | F127: =SUM(D127*E127) -> 1950 | G127: 2010-10-27
A128: 126 | B128: 20183009 | C128: 电脑主机 | D128: 1950 | E128: 1 | F128: =SUM(D128*E128) -> 1950 | G128: 2010-10-27
A129: 127 | B129: 20183010 | C129: 电脑主机 | D129: 1950 | E129: 1 | F129: =SUM(D129*E129) -> 1950 | G129: 2010-10-27
A130: 128 | B130: 20183011 | C130: 电脑主机 | D130: 1950 | E130: 1 | F130: =SUM(D130*E130) -> 1950 | G130: 2010-10-27
A131: 129 | B131: 20183012 | C131: 电脑主机 | D131: 1950 | E131: 1 | F131: =SUM(D131*E131) -> 1950 | G131: 2010-10-27
A132: 130 | B132: 20183013 | C132: 电脑主机 | D132: 1950 | E132: 1 | F132: =SUM(D132*E132) -> 1950 | G132: 2010-10-27
A133: 131 | B133: 20183014 | C133: 电脑主机 | D133: 1950 | E133: 1 | F133: =SUM(D133*E133) -> 1950 | G133: 2010-10-27
A134: 132 | B134: 20183015 | C134: 电脑主机 | D134: 1950 | E134: 1 | F134: =SUM(D134*E134) -> 1950 | G134: 2010-10-27
A135: 133 | B135: 20183016 | C135: 电脑主机 | D135: 1950 | E135: 1 | F135: =SUM(D135*E135) -> 1950 | G135: 2010-10-27
A136: 134 | B136: 20183017 | C136: 电脑主机 | D136: 1950 | E136: 1 | F136: =SUM(D136*E136) -> 1950 | G136: 2010-10-27
A137: 135 | B137: 20183018 | C137: 电脑主机 | D137: 1950 | E137: 1 | F137: =SUM(D137*E137) -> 1950 | G137: 2010-10-27
A138: 136 | B138: 20183019 | C138: 电脑主机 | D138: 1950 | E138: 1 | F138: =SUM(D138*E138) -> 1950 | G138: 2010-10-27
A139: 137 | B139: 20183020 | C139: 电脑主机 | D139: 1950 | E139: 1 | F139: =SUM(D139*E139) -> 1950 | G139: 2010-10-27
A140: 138 | B140: 20183021 | C140: 电脑主机 | D140: 1950 | E140: 1 | F140: =SUM(D140*E140) -> 1950 | G140: 2010-10-27
A141: 139 | B141: 20183022 | C141: 电脑主机 | D141: 1950 | E141: 1 | F141: =SUM(D141*E141) -> 1950 | G141: 2010-10-27
A142: 140 | B142: 20183023 | C142: 电脑主机 | D142: 1950 | E142: 1 | F142: =SUM(D142*E142) -> 1950 | G142: 2010-10-27
A143: 141 | B143: 20182600 | C143: 电脑主机 | D143: 3875 | E143: 1 | F143: =SUM(D143*E143) -> 3875 | G143: 2011-01-13
A144: 142 | B144: 20182601 | C144: 电脑主机 | D144: 3875 | E144: 1 | F144: =SUM(D144*E144) -> 3875 | G144: 2011-01-13
A145: 143 | B145: 20182576 | C145: 电话会议系统控制主机 | D145: 4068 | E145: 1 | F145: =SUM(D145*E145) -> 4068 | G145: 2011-01-13
A146: 144 | B146: 20182577 | C146: 电话会议系统控制主机 | D146: 4086 | E146: 1 | F146: =SUM(D146*E146) -> 4086 | G146: 2011-01-13
A147: 145 | B147: 20182620 | C147: 扩音型会议系统控制主机 | D147: 4553 | E147: 1 | F147: =SUM(D147*E147) -> 4553 | G147: 2011-01-13
A148: 146 | B148: 20183140 | C148: 上海百花落地式电风扇 | D148: 125 | E148: 1 | F148: =SUM(D148*E148) -> 125 | G148: 2009-03-01
A149: 147 | B149: 20183157 | C149: 交换机 | D149: 1785 | E149: 1 | F149: =SUM(D149*E149) -> 1785 | G149: 2011-09-01
A150: 148 | B150: 20183185 | C150: 阅览椅 | D150: 134.5 | E150: 6 | F150: =SUM(D150*E150) -> 807 | G150: 2010-11-22
A151: 149 | B151: 20183260 | C151: 学生椅 | D151: 110 | E151: 3 | F151: =SUM(D151*E151) -> 330 | G151: 2010-11-22
A152: 150 | B152: 20183280 | C152: 真皮大班转椅 | D152: 170 | E152: 1 | F152: =SUM(D152*E152) -> 170 | G152: 2008-09-01
A153: 151 | B153: 20182422 | C153: 展盟8100扫描枪 | D153: 268 | E153: 1 | F153: =SUM(D153*E153) -> 268 | G153: 2008-09-01
A154: 152 | B154: 20182423 | C154: 展盟8100扫描枪 | D154: 268 | E154: 1 | F154: =SUM(D154*E154) -> 268 | G154: 2008-09-01
A155: 153 | B155: 20182424 | C155: 分配器 | D155: 910 | E155: 1 | F155: =SUM(D155*E155) -> 910 | G155: 2011-01-13
A156: 154 | B156: 20182425 | C156: 接入交换机 锐捷 STAR-S2150G | D156: 8700 | E156: 1 | F156: =SUM(D156*E156) -> 8700 | G156: 2010-11-17
A157: 155 | B157: 20182426 | C157: 接入交换机 锐捷 STAR-S2150G | D157: 8700 | E157: 1 | F157: =SUM(D157*E157) -> 8700 | G157: 2010-11-17
A158: 156 | B158: 20182427 | C158: 接入交换机 锐捷 STAR-S2150G | D158: 8700 | E158: 1 | F158: =SUM(D158*E158) -> 8700 | G158: 2010-11-17
A159: 157 | B159: 20182428 | C159: 小太阳 | D159: 100 | E159: 1 | F159: =SUM(D159*E159) -> 100 | G159: 2012-02-15
A160: 158 | B160: 20182429 | C160: 小太阳 | D160: 100 | E160: 1 | F160: =SUM(D160*E160) -> 100 | G160: 2012-02-15
A161: 159 | B161: 20182430 | C161: 塑封机 | D161: 200 | E161: 1 | F161: =SUM(D161*E161) -> 200 | G161: 2008-09-01
A162: 160 | B162: 20182431 | C162: 取暖器 | D162: 240 | E162: 1 | F162: =SUM(D162*E162) -> 240 | G162: 2008-09-01
A163: 161 | B163: 20182432 | C163: 实木 办公椅 | D163: 80 | E163: 1 | F163: =SUM(D163*E163) -> 80 | G163: 2010-05-06
A164: 162 | B164: 20182433 | C164: 双喜 取暖器 | D164: 100 | E164: 1 | F164: =SUM(D164*E164) -> 100 | G164: 2011-01-06
A165: 163 | B165: 20182434 | C165: 木电脑椅 | D165: 140 | E165: 1 | F165: =SUM(D165*E165) -> 140 | G165: 2010-09-21
A166: 164 | B166: 20182435 | C166: 美的取暖器 | D166: 79 | E166: 1 | F166: =SUM(D166*E166) -> 79 | G166: 2008-11-01
A167: 165 | B167: 20182436 | C167: 美的电暖器 | D167: 79 | E167: 1 | F167: =SUM(D167*E167) -> 79 | G167: 2008-09-01
A168: 166 | B168: 20182437 | C168: 美的电热瓶 | D168: 99 | E168: 1 | F168: =SUM(D168*E168) -> 99 | G168: 2010-06-23
A169: 167 | B169: 20182438 | C169: 美的好生活 取暖器 | D169: 140 | E169: 1 | F169: =SUM(D169*E169) -> 140 | G169: 2011-01-06
A170: 168 | B170: 20182439 | C170: 美的好生活 取暖器 | D170: 140 | E170: 1 | F170: =SUM(D170*E170) -> 140 | G170: 2011-01-06
A171: 169 | B171: 20182440 | C171: 电脑显示器 | D171: 1000 | E171: 1 | F171: =SUM(D171*E171) -> 1000 | G171: 2008-11-06
A172: 170 | B172: 20182441 | C172: 电脑主机 | D172: 2000 | E172: 1 | F172: =SUM(D172*E172) -> 2000 | G172: 2008-11-06
A173: 171 | B173: 20182442 | C173: 电脑显示器 | D173: 1000 | E173: 1 | F173: =SUM(D173*E173) -> 1000 | G173: 2010-05-04
A174: 172 | B174: 20182443 | C174: 电脑主机 | D174: 2800 | E174: 1 | F174: =SUM(D174*E174) -> 2800 | G174: 2010-05-04
A175: 173 | B175: 20182444 | C175: 电脑显示器 | D175: 1000 | E175: 1 | F175: =SUM(D175*E175) -> 1000 | G175: 2010-05-04
A176: 174 | B176: 20182445 | C176: 电脑主机 | D176: 2800 | E176: 1 | F176: =SUM(D176*E176) -> 2800 | G176: 2010-05-04
A177: 175 | B177: 20182446 | C177: 电脑显示器 | D177: 900 | E177: 1 | F177: =SUM(D177*E177) -> 900 | G177: 2007-04-22
A178: 176 | B178: 20182447 | C178: 良田S500高拍仪 | D178: 2450 | E178: 1 | F178: =SUM(D178*E178) -> 2450 | G178: 2010-12-21
A179: 177 | B179: 20182448 | C179: 电脑显示器 | D179: 1000 | E179: 1 | F179: =SUM(D179*E179) -> 1000 | G179: 2007-04-22
A180: 178 | B180: 20182449 | C180: 阅览椅 | D180: 134.5 | E180: 1 | F180: =SUM(D180*E180) -> 134.5 | G180: 2010-12-24
A181: 179 | B181: 20182450 | C181: 针式打印机 | D181: 1700 | E181: 1 | F181: =SUM(D181*E181) -> 1700 | G181: 2008-09-01
A182: 180 | B182: 20182451 | C182: 真皮大班转椅 | D182: 170 | E182: 1 | F182: =SUM(D182*E182) -> 170 | G182: 2008-09-01
A183: 181 | B183: 20182452 | C183: DELLBZ 电脑 | D183: 3500 | E183: 1 | F183: =SUM(D183*E183) -> 3500 | G183: 2008-09-01
A184: 182 | B184: 20182453 | C184: 电脑 | D184: 3800 | E184: 1 | F184: =SUM(D184*E184) -> 3800 | G184: 2007-04-22
A185: 183 | B185: 20182454 | C185: 方正电脑 | D185: 3850 | E185: 1 | F185: =SUM(D185*E185) -> 3850 | G185: 2009-08-01
A186: 184 | B186: 20182455 | C186: 电脑显示器 | D186: 900 | E186: 1 | F186: =SUM(D186*E186) -> 900 | G186: 2007-04-22
A187: 185 | B187: 20182456 | C187: 电脑显示器 | D187: 900 | E187: 1 | F187: =SUM(D187*E187) -> 900 | G187: 2007-04-22
A188: 186 | B188: 20182457 | C188: 激光打印机 | D188: 2750 | E188: 1 | F188: =SUM(D188*E188) -> 2750 | G188: 2008-11-06
A189: 187 | B189: 20182458 | C189: 克莱特 气压供水瓶 | D189: 170 | E189: 1 | F189: =SUM(D189*E189) -> 170 | G189: 2010-05-28
A190: 188 | B190: 20182459 | C190: 投影仪 | D190: 11502 | E190: 1 | F190: =SUM(D190*E190) -> 11502 | G190: 2011-01-13
A191: 189 | B191: 20182460 | C191: 投影仪 | D191: 11502 | E191: 1 | F191: =SUM(D191*E191) -> 11502 | G191: 2011-01-13
A192: 190 | B192: 20182461 | C192: 投影仪 | D192: 11502 | E192: 1 | F192: =SUM(D192*E192) -> 11502 | G192: 2011-01-13
A193: 191 | B193: 20182462 | C193: 投影仪 | D193: 11502 | E193: 1 | F193: =SUM(D193*E193) -> 11502 | G193: 2011-01-13
E194: =SUM(E3:E193) -> 198 | F194: =SUM(F3:F193) -> 285325.74
